bitfinex/quotes_BTCUSD_20250917
["timestamp","ask_amount","ask_price","bid_price","bid_amount"]
[1758120308924,1.10480712,115730.0,115720.0,0.0004721]
[1758120309341,0.82968712,115730.0,115720.0,0.0034721]
[1758120309759,1.10580712,115730.0,115720.0,0.0034721]
[1758120313897,1.10576712,115730.0,115720.0,0.0034721]
[1758120314102,0.1728459,115710.0,115700.0,0.20745352]
[1758120314314,0.54069003,115710.0,115700.0,0.18160352]
[1758120314530,0.95118989,115710.0,115700.0,0.18362352]
[1758120314739,0.95118989,115710.0,115700.0,0.18666352]
[1758120314977,0.95128989,115710.0,115700.0,0.20947352]
[1758120316269,0.96726852,115710.0,115700.0,0.20947352]
[1758120316699,0.69222852,115710.0,115700.0,0.21347352]
[1758120316895,0.96826852,115710.0,115700.0,0.03197]
[1758120318241,0.97034852,115710.0,115700.0,0.00916]
[1758120318867,0.97913452,115710.0,115700.0,0.00916]
[1758120319133,0.97913452,115710.0,115700.0,0.17898084]
[1758120319341,0.97705452,115710.0,115700.0,0.20483084]
[1758120319545,0.97705452,115710.0,115700.0,0.03197]
[1758120319722,0.98222452,115710.0,115700.0,0.0041]
[1758120320065,0.97913452,115710.0,115700.0,0.0041]
[1758120320289,0.97701452,115710.0,115700.0,0.00916]
[1758120320502,0.97701452,115710.0,115700.0,0.03197]
[1758120320713,0.97909452,115710.0,115700.0,0.03197]
[1758120321411,0.97701452,115710.0,115700.0,0.03197]
[1758120322535,0.97909452,115710.0,115700.0,0.03197]
[1758120322755,0.97701452,115710.0,115700.0,0.03197]
[1758120322972,0.56647466,115710.0,115700.0,0.03197]
[1758120323411,0.97697452,115710.0,115700.0,0.03197]
[1758120324055,1.39264438,115710.0,115700.0,0.0041]
[1758120324282,1.41646438,115710.0,115700.0,0.004]
[1758120324497,1.44243585,115710.0,115700.0,0.004]
[1758120324721,0.17286084,115700.0,115690.0,0.0001]
[1758120324932,0.69067161,115700.0,115690.0,0.02291]
[1758120325170,0.69285161,115700.0,115690.0,0.0001]
[1758120325419,0.69285161,115700.0,115690.0,0.20084578]
[1758120325420,0.69077161,115700.0,115690.0,0.20084578]
[1758120325629,0.69077161,115700.0,115690.0,0.02797]
[1758120325837,0.96669161,115700.0,115690.0,0.20084578]
[1758120326267,0.96669161,115700.0,115690.0,0.02797]
[1758120326936,0.96769161,115700.0,115690.0,0.03097]
[1758120327155,0.69177161,115700.0,115690.0,0.20384578]
[1758120327378,0.28127175,115700.0,115690.0,0.20384578]
[1758120327818,0.96769161,115700.0,115690.0,0.20384578]
[1758120328034,0.96769161,115700.0,115690.0,0.03097]
[1758120328668,0.96769161,115700.0,115690.0,0.20384578]
[1758120328875,0.55719175,115700.0,115690.0,0.20384578]
[1758120329127,0.96769161,115700.0,115690.0,0.03097]
[1758120329566,0.96769161,115700.0,115690.0,0.20384578]
[1758120330848,0.96769161,115700.0,115690.0,0.1977548]
[1758120331069,0.55719175,115700.0,115690.0,0.1977548]
[1758120331284,0.96769648,115700.0,115690.0,0.1977548]
[1758120331743,0.28127662,115700.0,115690.0,0.60825466]
[1758120331984,0.55711662,115700.0,115690.0,0.60825466]
[1758120332208,0.55711662,115700.0,115690.0,0.60835466]
[1758120333340,0.55711662,115700.0,115690.0,0.1978548]
[1758120333541,0.55711662,115700.0,115690.0,0.60835466]
[1758120333960,0.97266648,115700.0,115690.0,0.0031]
[1758120334177,0.99625648,115700.0,115690.0,0.0031]
[1758120334590,0.99625648,115700.0,115690.0,0.0051]
[1758120334796,0.99625648,115700.0,115690.0,0.0031]
[1758120335030,0.99625648,115700.0,115690.0,0.17597578]
[1758120335238,0.58575662,115700.0,115690.0,0.02782]
[1758120335448,0.96965648,115700.0,115690.0,0.02782]
[1758120335661,0.96965648,115700.0,115690.0,0.20069578]
[1758120335871,0.96965648,115700.0,115690.0,0.20387578]
[1758120338916,0.28127662,115700.0,115690.0,0.20387578]
[1758120339155,0.96754446,115700.0,115690.0,0.20387578]
[1758120339372,0.96754446,115700.0,115690.0,0.031]
[1758120339593,0.5590846,115700.0,115690.0,0.031]
[1758120339805,0.96958446,115700.0,115690.0,0.031]
[1758120340671,0.96958446,115700.0,115690.0,0.02782]
[1758120340901,0.97259446,115700.0,115690.0,0.02782]
[1758120341113,0.96958446,115700.0,115690.0,0.20069578]
[1758120341327,0.96754446,115700.0,115690.0,0.20387578]
[1758120341541,0.69178446,115700.0,115690.0,0.20387578]
[1758120341767,0.96754446,115700.0,115690.0,0.20387578]
[1758120341984,0.69178446,115700.0,115690.0,0.20387578]
[1758120342201,0.5570046,115700.0,115690.0,0.20387578]
[1758120343311,0.5570046,115700.0,115690.0,0.61437564]
[1758120345876,0.5570046,115700.0,115690.0,0.20387578]
[1758120346106,0.2812846,115700.0,115690.0,0.20387578]
[1758120346324,0.5569646,115700.0,115690.0,0.20387578]
[1758120346523,0.55704316,115700.0,115690.0,0.20387578]
[1758120347156,0.38414232,115700.0,115690.0,0.56930619]
[1758120348006,0.10850232,115700.0,115690.0,0.56930619]
[1758120348222,0.38414232,115700.0,115690.0,0.20387578]
[1758120348437,0.36808513,115700.0,115690.0,0.56930619]
[1758120348669,0.36808513,115700.0,115690.0,0.20387578]
[1758120348891,0.36808513,115700.0,115690.0,0.56930619]
[1758120349362,0.54094597,115700.0,115690.0,0.20387578]
[1758120349819,0.54298597,115700.0,115690.0,0.17797578]
[1758120350042,0.91142638,115700.0,115690.0,0.0031]
[1758120350247,0.93501638,115700.0,115690.0,0.0031]
[1758120350464,0.56958597,115700.0,115690.0,0.0031]
[1758120350692,0.56958597,115700.0,115690.0,0.0051]
[1758120350914,0.93501638,115700.0,115690.0,0.003]
[1758120351162,0.95107475,115700.0,115690.0,0.003]
[1758120351372,1.12099242,115700.0,115690.0,0.003]
[1758120351901,0.17287578,115690.0,115680.0,0.0001]
[1758120352143,0.62965132,115690.0,115680.0,0.0001]
[1758120352351,0.62965132,115690.0,115680.0,0.0021]
[1758120352659,0.26432091,115690.0,115680.0,0.17499073]
[1758120352909,0.53992091,115690.0,115680.0,0.20089073]
[1758120353410,0.28173546,115690.0,115680.0,0.56632114]
[1758120353630,0.28173546,115690.0,115680.0,0.20089073]
[1758120353860,0.28173546,115690.0,115680.0,0.56632114]
[1758120354108,0.45461124,115690.0,115680.0,0.56632114]
[1758120354363,0.45561124,115690.0,115680.0,0.56932114]
[1758120354819,0.45561124,115690.0,115680.0,0.20389073]
[1758120356024,0.45561124,115690.0,115680.0,0.031]
[1758120356258,0.45765124,115690.0,115680.0,0.02782]
[1758120356482,0.45765124,115690.0,115680.0,0.0051]
[1758120356692,0.45765124,115690.0,115680.0,0.031]
[1758120356906,0.90835132,115690.0,115680.0,0.031]
[1758120357577,0.54292091,115690.0,115680.0,0.031]
[1758120358021,0.54292091,115690.0,115680.0,0.20389073]
[1758120358750,0.54292091,115690.0,115680.0,0.031]
[1758120358930,0.54292091,115690.0,115680.0,0.0051]
[1758120359135,0.93498132,115690.0,115680.0,0.0031]
[1758120359344,0.93498132,115690.0,115680.0,0.00522]
[1758120359612,0.91135132,115690.0,115680.0,0.02883]
[1758120360015,0.90835132,115690.0,115680.0,0.02883]
[1758120360223,0.90835132,115690.0,115680.0,0.03179]
[1758120360434,0.63279132,115690.0,115680.0,0.20468073]
[1758120360649,0.54284091,115690.0,115680.0,0.20468073]
[1758120361073,0.54284091,115690.0,115680.0,0.03179]
[1758120362406,0.54080091,115690.0,115680.0,0.03179]
[1758120362634,0.93494132,115690.0,115680.0,0.0031]
[1758120363337,0.63283132,115690.0,115680.0,0.0031]
[1758120363563,0.90831132,115690.0,115680.0,0.00522]
[1758120364042,0.26532091,115690.0,115680.0,0.20567073]
[1758120364268,0.54076091,115690.0,115680.0,0.03278]
[1758120364745,0.54076091,115690.0,115680.0,0.20567073]
[1758120364960,0.54076207,115690.0,115680.0,0.20567073]
[1758120365188,0.26532207,115690.0,115680.0,0.20567073]
[1758120365409,0.54076207,115690.0,115680.0,0.20567073]
[1758120365655,0.36788629,115690.0,115680.0,0.20567073]
[1758120366145,0.0011,115690.0,115680.0,0.57110114]
[1758120366366,0.2765,115690.0,115680.0,0.57110114]
[1758120367018,0.0011,115690.0,115680.0,0.57110114]
[1758120367300,0.2765,115690.0,115680.0,0.57110114]
[1758120367925,0.0011,115690.0,115680.0,0.57110114]
[1758120368101,0.2765,115690.0,115680.0,0.57110114]
[1758120369101,0.2765,115690.0,115680.0,0.20567073]
[1758120369422,0.2765,115690.0,115680.0,0.57110114]
[1758120369821,0.0011,115690.0,115680.0,0.57110114]
[1758120370390,0.0011,115690.0,115680.0,0.20567073]
[1758120371054,0.27646,115690.0,115680.0,0.20567073]
[1758120374640,0.27642,115690.0,115680.0,0.20567073]
[1758120374860,0.27638,115690.0,115680.0,0.20567073]
[1758120375416,0.0011,115690.0,115680.0,0.57110114]
[1758120375843,0.0011,115690.0,115680.0,0.60125304]
[1758120376172,0.001,115690.0,115680.0,0.60125304]
[1758120376416,0.001,115690.0,115680.0,0.68652271]
[1758120377324,0.001,115690.0,115680.0,0.71249082]
[1758120377745,0.001,115690.0,115680.0,0.77725994]
[1758120377970,0.001,115690.0,115680.0,1.22796002]
[1758120378656,0.0001,115700.0,115690.0,0.20302768]
[1758120378870,0.0001,115700.0,115690.0,0.87125809]
[1758120379091,0.00057185,115710.0,115700.0,0.17286084]
[1758120379300,0.00057185,115710.0,115700.0,0.56585125]
[1758120379517,0.00057185,115710.0,115700.0,0.56784125]
[1758120379742,0.00057185,115710.0,115700.0,0.59799315]
[1758120380189,0.00057185,115710.0,115700.0,0.68326282]
[1758120380411,0.00057185,115710.0,115700.0,0.70922691]
[1758120380639,0.00047185,115710.0,115700.0,0.70922691]
[1758120380858,0.00347185,115710.0,115700.0,0.79549658]
[1758120381093,0.00347185,115710.0,115700.0,0.79449658]
[1758120381094,0.00047185,115710.0,115700.0,0.79449658]
[1758120381319,0.00047185,115710.0,115700.0,1.06969658]
[1758120381584,0.00247185,115710.0,115700.0,1.07069658]
[1758120381854,0.00047185,115710.0,115700.0,1.06969658]
[1758120382075,0.00147185,115710.0,115700.0,1.07069658]
[1758120382305,0.00147185,115710.0,115700.0,1.07936313]
[1758120382768,0.00147185,115710.0,115700.0,1.07946313]
[1758120382976,0.00147185,115710.0,115700.0,0.80426313]
[1758120383194,0.00147185,115710.0,115700.0,1.07942313]
[1758120384903,0.00047185,115710.0,115700.0,1.47842313]
[1758120385093,0.00247185,115710.0,115700.0,1.47942313]
[1758120385217,0.00216207,115710.0,115700.0,1.47942313]
[1758120386468,0.0001,115740.0,115730.0,0.17281603]
[1758120386699,0.0001,115740.0,115730.0,0.87818277]
[1758120386919,0.0001,115740.0,115730.0,0.90773277]
[1758120387126,0.0001,115740.0,115730.0,0.63611389]
[1758120387397,0.0001,115740.0,115730.0,0.91119389]
[1758120387591,0.1728863,115750.0,115740.0,0.1728011]
[1758120387852,0.56709671,115750.0,115730.0,0.2006171]
[1758120388084,0.84213671,115750.0,115740.0,0.1728011]
[1758120388932,0.97213671,115750.0,115740.0,0.1728011]
[1758120389082,0.77271041,115750.0,115740.0,0.1747911]
[1758120389298,0.40514,115750.0,115740.0,0.2023511]
[1758120389553,0.77057041,115750.0,115740.0,0.2023511]
[1758120390241,0.49553041,115750.0,115740.0,0.2024511]
[1758120390410,0.49767041,115750.0,115740.0,0.2024511]
[1758120391034,0.37067041,115750.0,115740.0,0.2034511]
[1758120391441,0.36853041,115750.0,115740.0,0.2034511]
[1758120391867,0.00524,115750.0,115740.0,0.2034511]
[1758120392066,0.00524,115750.0,115740.0,0.2002411]
[1758120392312,0.00524,115750.0,115740.0,0.2034511]
[1758120392519,0.17802617,115750.0,115740.0,0.1758911]
[1758120392726,0.18115617,115750.0,115740.0,0.1758911]
[1758120392936,0.54658658,115750.0,115740.0,0.0011]
[1758120393139,0.57009658,115750.0,115740.0,0.1739011]
[1758120393346,0.21070516,115750.0,115740.0,0.1758911]
[1758120393550,0.57613557,115750.0,115740.0,0.1758911]
[1758120393718,0.57613557,115750.0,115740.0,0.1739011]
[1758120395324,0.66261524,115750.0,115740.0,0.0011]
[1758120395543,0.66261524,115750.0,115740.0,0.1739011]
[1758120395759,0.66261524,115750.0,115740.0,0.0011]
[1758120395970,0.79261524,115750.0,115740.0,0.0011]
[1758120396188,0.79261524,115750.0,115740.0,0.1739011]
[1758120399286,0.79261524,115750.0,115740.0,0.0011]
[1758120399494,0.79261524,115750.0,115740.0,0.1739011]
[1758120400513,1.06745524,115750.0,115740.0,0.1739011]
[1758120402183,1.06745524,115750.0,115740.0,0.0011]
[1758120403113,0.81857941,115750.0,115740.0,0.001]
[1758120403326,1.09337941,115750.0,115740.0,0.001]
[1758120403536,0.81857941,115750.0,115740.0,0.001]
[1758120403747,1.09337941,115750.0,115740.0,0.001]
[1758120407301,0.81857941,115750.0,115740.0,0.001]
[1758120407790,1.09333941,115750.0,115740.0,0.001]
[1758120407981,1.54989518,115750.0,115740.0,0.001]
[1758120408466,1.54385619,115750.0,115740.0,0.001]
[1758120408697,0.86416743,115750.0,115740.0,0.001]
[1758120408934,1.13892743,115750.0,115740.0,0.001]
[1758120409201,0.86416743,115750.0,115740.0,0.001]
[1758120409447,1.13892743,115750.0,115740.0,0.001]
[1758120409888,0.86416743,115750.0,115740.0,0.001]
[1758120410316,1.13892743,115750.0,115740.0,0.001]
[1758120411863,0.45317434,115750.0,115740.0,0.001]
[1758120412079,0.70008434,115750.0,115740.0,0.2016611]
[1758120412302,1.11107743,115750.0,115740.0,0.2016611]
[1758120412996,1.08297326,115750.0,115740.0,0.02886]
[1758120413216,0.81032326,115750.0,115740.0,0.02886]
[1758120413436,1.08504326,115750.0,115740.0,0.2016611]
[1758120413650,1.08504326,115750.0,115740.0,0.1986611]
[1758120414479,0.39933017,115750.0,115740.0,0.1986611]
[1758120414748,0.499114,115750.0,115740.0,0.2016611]
[1758120414966,1.08289326,115750.0,115740.0,0.2016611]
[1758120415190,0.224434,115750.0,115740.0,0.2016611]
[1758120415409,0.499114,115750.0,115740.0,0.2016611]
[1758120415894,0.224434,115750.0,115740.0,0.2016611]
[1758120416109,0.499114,115750.0,115740.0,0.61265419]
[1758120416323,0.499114,115750.0,115740.0,0.2016611]
[1758120417194,0.499114,115750.0,115740.0,0.61265419]
[1758120417643,0.41384433,115750.0,115740.0,0.61265419]
[1758120417868,0.28380433,115750.0,115740.0,0.61265419]
[1758120419152,0.00916433,115750.0,115740.0,0.61265419]
[1758120419382,0.28380433,115750.0,115740.0,0.69122525]
[1758120419824,0.28380433,115750.0,115740.0,1.10221834]
[1758120420041,0.00916433,115750.0,115740.0,0.69132525]
[1758120420250,0.00916433,115750.0,115740.0,1.13247024]
[1758120421184,0.00916433,115750.0,115740.0,0.231913]
[1758120421401,0.51052709,115750.0,115740.0,0.0011]
[1758120421607,0.70713326,115750.0,115740.0,0.1739011]
[1758120421816,0.094434,115750.0,115740.0,0.22052121]
[1758120422062,0.499034,115750.0,115740.0,0.2032411]
[1758120422496,0.224434,115750.0,115740.0,0.2032411]
[1758120422708,0.91198709,115750.0,115740.0,0.2032411]
[1758120422956,1.08477326,115750.0,115740.0,0.2032411]
[1758120423438,0.91198709,115750.0,115740.0,0.2032411]
[1758120424073,0.13916433,115750.0,115740.0,0.65173395]
[1758120424284,0.00916433,115750.0,115740.0,0.65173395]
[1758120424515,0.00916433,115750.0,115740.0,0.61410419]
[1758120424942,0.0031,115750.0,115740.0,1.32980918]
[1758120425824,0.0031,115750.0,115740.0,1.05524918]
[1758120426099,0.0031,115750.0,115740.0,0.64425609]
[1758120426322,0.0031,115750.0,115740.0,0.233263]
[1758120426566,0.0031,115750.0,115740.0,0.64425609]
[1758120426790,0.0031,115750.0,115740.0,1.05524918]
[1758120427028,0.0031,115750.0,115740.0,1.13305994]
[1758120428737,0.0031,115750.0,115740.0,0.72206685]
[1758120429329,0.003,115750.0,115740.0,0.72206685]
[1758120430610,0.21318286,115760.0,115750.0,0.58377926]
[1758120430822,0.21318286,115760.0,115750.0,0.58893926]
[1758120431047,0.21318286,115760.0,115750.0,0.20193617]
[1758120431232,0.21318286,115760.0,115750.0,0.61292926]
[1758120431451,0.21328286,115760.0,115750.0,0.61292926]
[1758120432798,0.21328286,115760.0,115750.0,0.61302926]
[1758120433860,0.21328286,115760.0,115750.0,0.20203617]
[1758120434096,0.21328286,115760.0,115750.0,0.61302926]
[1758120435512,0.0001,115760.0,115750.0,0.61302926]
[1758120435916,0.0001,115760.0,115750.0,0.69829893]
[1758120435917,0.2745,115760.0,115750.0,0.69829893]
[1758120436118,0.2745,115760.0,115750.0,0.61302926]
[1758120436370,0.2745,115760.0,115750.0,0.20203617]
[1758120436597,0.2745,115760.0,115750.0,0.61302926]
[1758120437322,0.2785,115760.0,115750.0,0.61402926]
[1758120437895,0.2745,115760.0,115750.0,0.61302926]
[1758120439504,0.2785,115760.0,115750.0,0.61402926]
[1758120439748,0.2745,115760.0,115750.0,0.61302926]
[1758120440234,0.2785,115760.0,115750.0,0.61402926]
[1758120440914,0.2745,115760.0,115750.0,0.61302926]
[1758120441162,0.2765,115760.0,115750.0,0.61302926]
[1758120441605,0.27642,115760.0,115750.0,0.61302926]
[1758120441843,0.0021,115760.0,115750.0,0.61302926]
[1758120442018,0.27638,115760.0,115750.0,0.61302926]
[1758120443407,0.0021,115760.0,115750.0,0.65101101]
[1758120443670,0.25238,115760.0,115750.0,0.68116291]
[1758120443900,0.0021,115760.0,115750.0,0.68116291]
[1758120446400,0.0021,115760.0,115750.0,0.95540291]
[1758120447034,0.0021,115760.0,115750.0,0.68116291]
[1758120447496,0.41516309,115760.0,115750.0,0.20203617]
[1758120447730,0.44121309,115760.0,115750.0,0.19687617]
[1758120448217,0.44121309,115760.0,115750.0,0.19888617]
[1758120448455,0.43826309,115760.0,115750.0,0.19888617]
[1758120448876,0.67320401,115760.0,115750.0,0.17489617]
[1758120449098,0.70532373,115760.0,115750.0,0.0001]
[1758120449737,0.17278617,115750.0,115740.0,0.1729011]
[1758120449961,0.97536865,115750.0,115740.0,0.1729011]
[1758120450189,0.97743865,115750.0,115740.0,0.1729011]
[1758120450402,0.97743889,115750.0,115740.0,0.1729011]
[1758120450622,0.97753889,115750.0,115740.0,0.1729011]
[1758120451357,0.97146893,115750.0,115740.0,0.0001]
[1758120451593,0.97753805,115750.0,115740.0,0.0001]
[1758120452057,0.1728011,115740.0,115730.0,0.00024107]
[1758120452286,0.66906386,115740.0,115730.0,0.00024107]
[1758120452508,0.69718386,115740.0,115730.0,0.1730571]
[1758120453221,0.69728386,115740.0,115730.0,0.1730571]
[1758120453450,0.69728386,115740.0,115730.0,0.00024107]
[1758120453451,1.11434383,115740.0,115730.0,0.00024107]
[1758120453681,1.11434383,115740.0,115730.0,0.00014107]
[1758120453682,0.29235765,115740.0,115730.0,0.00014107]
[1758120453937,0.70335074,115740.0,115730.0,0.00014107]
[1758120454165,0.70335074,115740.0,115730.0,0.00214107]
[1758120454386,0.97751074,115740.0,115730.0,0.00014107]
[1758120454868,0.56951765,115740.0,115730.0,0.00114107]
[1758120455121,0.98051074,115740.0,115730.0,0.00114107]
[1758120455362,1.39150383,115740.0,115730.0,0.00114107]
[1758120456203,1.38850383,115740.0,115730.0,0.00014107]
[1758120456683,1.38850383,115740.0,115730.0,0.00114107]
[1758120456684,1.39050383,115740.0,115730.0,0.00114107]
[1758120457025,1.39046383,115740.0,115730.0,0.00114107]
[1758120458002,1.11634383,115740.0,115730.0,0.00114107]
[1758120458515,1.39046383,115740.0,115730.0,0.00114107]
[1758120459684,1.39906379,115740.0,115730.0,0.00114107]
[1758120461163,1.39299691,115740.0,115730.0,0.00114107]
[1758120461389,1.39904485,115740.0,115730.0,0.00114107]
[1758120462098,1.18977062,115740.0,115730.0,0.00114107]
[1758120462340,1.46389062,115740.0,115730.0,0.00114107]
[1758120462557,1.18977062,115740.0,115730.0,0.00114107]
[1758120462782,1.46389062,115740.0,115730.0,0.00114107]
[1758120463723,1.87488371,115740.0,115730.0,0.00114107]
[1758120463941,1.46389062,115740.0,115730.0,0.00114107]
[1758120464183,1.87488371,115740.0,115730.0,0.00114107]
[1758120465692,1.90503561,115740.0,115730.0,0.00114107]
[1758120465911,1.90303561,115740.0,115730.0,0.00014107]
[1758120466564,0.17286084,115700.0,115690.0,0.06831573]
[1758120466847,0.94925154,115700.0,115690.0,0.06878758]
[1758120467084,0.97862154,115700.0,115690.0,0.06878758]
[1758120467502,0.97872154,115700.0,115690.0,0.06878758]
[1758120467702,0.97872154,115700.0,115690.0,0.00262185]
[1758120467906,0.97872154,115700.0,115690.0,0.00057185]
[1758120468327,0.98737519,115700.0,115690.0,0.00057185]
[1758120469579,0.98737519,115700.0,115690.0,0.00157185]
[1758120469580,0.98837519,115700.0,115690.0,0.00157185]
[1758120469782,0.66893339,115700.0,115690.0,0.00157185]
[1758120470294,0.67239706,115700.0,115690.0,0.00157185]
[1758120470541,0.94647706,115700.0,115690.0,0.00147185]
[1758120470754,0.67239706,115700.0,115690.0,0.00147185]
[1758120470973,0.94647706,115700.0,115690.0,0.00147185]
[1758120471182,1.0124933,115700.0,115690.0,0.00147185]
[1758120471609,0.7384133,115700.0,115690.0,0.00147185]
[1758120471813,1.0124933,115700.0,115690.0,0.00147185]
[1758120472184,0.7384133,115700.0,115690.0,0.00147185]
[1758120472390,1.0124933,115700.0,115690.0,0.00147185]
[1758120475236,0.7384133,115700.0,115690.0,0.00147185]
[1758120475444,1.0124933,115700.0,115690.0,0.00147185]
[1758120476526,0.7384133,115700.0,115690.0,0.00147185]
[1758120476728,1.0124533,115700.0,115690.0,0.00147185]
[1758120477177,0.7384133,115700.0,115690.0,0.00147185]
[1758120477390,1.0124533,115700.0,115690.0,0.00147185]
[1758120479112,0.7384133,115700.0,115690.0,0.00147185]
[1758120479342,1.0124533,115700.0,115690.0,0.00147185]
[1758120480017,0.7384133,115700.0,115690.0,0.00147185]
[1758120480461,1.0124533,115700.0,115690.0,0.00147185]
[1758120480691,0.34341467,115700.0,115690.0,0.00675185]
[1758120480922,0.10453759,115700.0,115690.0,0.20435763]
[1758120481146,0.27393476,115700.0,115690.0,0.20435763]
[1758120481376,0.54797476,115700.0,115690.0,0.20435763]
[1758120481595,0.91360605,115700.0,115690.0,0.20435763]
[1758120482533,0.54797476,115700.0,115690.0,0.03148185]
[1758120482741,0.91360605,115700.0,115690.0,0.20435763]
[1758120482952,0.91360605,115700.0,115690.0,0.03148185]
[1758120483169,0.91360605,115700.0,115690.0,0.20435763]
[1758120483832,0.91559605,115700.0,115690.0,0.00355185]
[1758120484043,0.91860605,115700.0,115690.0,0.17642763]
[1758120484257,0.91360605,115700.0,115690.0,0.20387763]
[1758120484479,0.54797476,115700.0,115690.0,0.20387763]
[1758120484690,0.91360605,115700.0,115690.0,0.20387763]
[1758120485115,0.90755545,115700.0,115690.0,0.20387763]
[1758120485318,0.91361811,115700.0,115690.0,0.20387763]
[1758120485531,0.54798682,115700.0,115690.0,0.20387763]
[1758120485789,0.53933317,115700.0,115690.0,0.20387763]
[1758120487610,0.09243233,115700.0,115690.0,0.20387763]
[1758120487845,0.53925317,115700.0,115690.0,0.20387763]
[1758120490664,0.53925317,115700.0,115690.0,0.03100185]
[1758120490873,0.54124317,115700.0,115690.0,0.03100185]
[1758120491134,0.54125066,115700.0,115690.0,0.03100185]
[1758120491408,0.53926066,115700.0,115690.0,0.03100185]
[1758120492545,0.90489195,115700.0,115690.0,0.20387763]
[1758120492775,0.53926066,115700.0,115690.0,0.20387763]
[1758120492988,0.26530066,115700.0,115690.0,0.20387763]
[1758120493201,0.53922066,115700.0,115690.0,0.20387763]
[1758120493825,0.53922066,115700.0,115690.0,0.03100185]
[1758120494191,0.54121066,115700.0,115690.0,0.02791185]
[1758120494405,0.90684195,115700.0,115690.0,0.00365185]
[1758120494778,0.90684195,115700.0,115690.0,0.20078763]
[1758120494984,0.90485195,115700.0,115690.0,0.20387763]
[1758120495196,0.53922066,115700.0,115690.0,0.20387763]
[1758120495400,0.36635982,115700.0,115690.0,0.20387763]
[1758120495598,0.09243982,115700.0,115690.0,0.20387763]
[1758120495826,0.36631982,115700.0,115690.0,0.20387763]
[1758120496022,0.09243982,115700.0,115690.0,0.20387763]
[1758120496291,0.36631982,115700.0,115690.0,0.20387763]
[1758120497121,0.09243982,115700.0,115690.0,0.20387763]
[1758120497334,0.36631982,115700.0,115690.0,0.20387763]
[1758120497601,0.49631982,115700.0,115690.0,0.20387763]
[1758120498220,0.22243982,115700.0,115690.0,0.20387763]
[1758120498429,0.49631982,115700.0,115690.0,0.20387763]
[1758120498654,0.13717015,115700.0,115690.0,0.56950892]
[1758120499088,0.13717015,115700.0,115690.0,0.64375886]
[1758120499304,0.13717015,115700.0,115690.0,0.59966082]
[1758120499305,0.41101015,115700.0,115690.0,0.59966082]
[1758120499943,0.13717015,115700.0,115690.0,0.59966082]
[1758120500563,0.13707015,115700.0,115690.0,0.59966082]
[1758120502270,0.13706903,115700.0,115690.0,0.59966082]
[1758120502852,0.13706903,115700.0,115690.0,0.60816712]
[1758120503272,0.13706903,115700.0,115690.0,0.88196712]
[1758120504475,0.13706903,115700.0,115690.0,0.60816712]
[1758120505754,0.001,115700.0,115690.0,0.67714499]
[1758120508442,0.001,115700.0,115690.0,0.76241466]
[1758120508819,0.001,115700.0,115690.0,0.7658766]
[1758120509048,0.001,115700.0,115690.0,0.82945953]
[1758120509968,0.001,115700.0,115690.0,1.22945953]
[1758120510478,0.00842,115730.0,115720.0,0.17283097]
[1758120510680,0.0001,115730.0,115720.0,0.53846226]
[1758120510945,0.0001,115730.0,115720.0,0.56796226]
[1758120511161,0.1301,115730.0,115720.0,0.56796226]
[1758120511826,0.1311,115730.0,115720.0,0.56796226]
[1758120512233,0.131,115730.0,115720.0,0.56806226]
[1758120514572,0.131,115730.0,115720.0,0.65333193]
[1758120515516,0.131,115730.0,115720.0,1.04911512]
[1758120515728,0.131,115730.0,115720.0,1.13438479]
[1758120515939,0.131,115730.0,115720.0,1.43398353]
[1758120516149,0.001,115730.0,115720.0,1.16034353]
[1758120516364,0.001,115730.0,115720.0,1.43398353]
[1758120517011,0.001,115730.0,115720.0,1.16034353]
[1758120517206,0.0001,115750.0,115740.0,0.1728011]
[1758120517423,0.0001,115750.0,115740.0,0.53843239]
[1758120517627,0.0001,115750.0,115740.0,0.54056239]
[1758120517830,0.0001,115750.0,115740.0,0.56642239]
[1758120518046,0.0001,115750.0,115740.0,0.2008911]
[1758120518266,0.17491617,115750.0,115740.0,0.1979311]
[1758120518492,0.17491617,115750.0,115740.0,0.19807226]
[1758120518717,0.0001,115750.0,115740.0,0.20103226]
[1758120520892,0.17591617,115750.0,115740.0,0.19907226]
[1758120521315,0.30591617,115750.0,115740.0,0.20203226]
[1758120522271,0.13313,115750.0,115740.0,0.20203226]
[1758120522699,0.1311,115750.0,115740.0,0.20203226]
[1758120523559,0.40466,115750.0,115740.0,0.20203226]
[1758120524451,0.40466,115750.0,115740.0,0.56766355]
[1758120525321,0.41070652,115750.0,115740.0,0.20203226]
[1758120525537,0.40466,115750.0,115740.0,0.20203226]
[1758120526168,0.40466,115750.0,115740.0,0.56766355]
[1758120526388,0.41070768,115750.0,115740.0,0.56766355]
[1758120526596,0.13714768,115750.0,115740.0,0.56766355]
[1758120526800,0.41066768,115750.0,115740.0,0.56766355]
[1758120527979,0.41066768,115750.0,115740.0,0.20203226]
[1758120528181,0.41066768,115750.0,115740.0,0.56470355]
[1758120528546,0.41066768,115750.0,115740.0,0.56766355]
[1758120529738,0.41066768,115750.0,115740.0,0.61274533]
[1758120529947,0.41066768,115750.0,115740.0,0.20203226]
[1758120530169,0.58345385,115750.0,115740.0,0.20203226]
[1758120530394,0.58345385,115750.0,115740.0,0.61274533]
[1758120530626,0.41066768,115750.0,115740.0,0.61274533]
[1758120531348,1.08451659,115750.0,115740.0,0.17404226]
[1758120531558,1.10786659,115750.0,115740.0,0.17404226]
[1758120531765,1.10786659,115750.0,115740.0,0.00124116]
[1758120533249,1.10786659,115750.0,115740.0,0.19984116]
[1758120533671,0.42363352,115750.0,115740.0,0.19984116]
[1758120533887,1.10778659,115750.0,115740.0,0.19984116]
[1758120536218,0.83434659,115750.0,115740.0,0.19984116]
[1758120536405,1.10778659,115750.0,115740.0,0.19974116]
[1758120537230,0.83434659,115750.0,115740.0,0.19974116]
[1758120537422,1.10774659,115750.0,115740.0,0.19974116]
[1758120538755,1.13371114,115750.0,115740.0,0.19974116]
[1758120539771,1.10774659,115750.0,115740.0,0.19974116]
[1758120540699,1.51845966,115750.0,115740.0,0.19974116]
[1758120541338,1.51845966,115750.0,115740.0,0.15659141]
[1758120541557,1.51845966,115750.0,115740.0,0.14371169]
[1758120541767,1.5844409,115750.0,115740.0,0.14371169]
[1758120541984,1.5844409,115750.0,115740.0,1e-08]
[1758120542214,1.3110409,115750.0,115740.0,1e-08]
[1758120542639,1.5844409,115750.0,115740.0,1e-08]
[1758120542857,1.33700752,115750.0,115740.0,1e-08]
[1758120543136,1.61040752,115750.0,115740.0,1e-08]
[1758120543339,1.60940752,115750.0,115740.0,1e-08]
[1758120543804,1.61140752,115750.0,115740.0,0.00100001]
[1758120544016,1.62000748,115750.0,115740.0,0.00100001]
[1758120544671,1.33600752,115750.0,115740.0,1e-08]